Cogmind - Beta 12 @@@ ROGUE MODE // 2023.04.10 @ 12:36:06 Player: Mr Goldstein Result: Destroyed by Y-64 Sentinel with KE Penetrator Performance ------------- Evolutions (5) 2500 Regions Visited (11) 2200 Robots Destroyed (0) 0 Value Destroyed (0) 0 Prototype IDs (23) 460 Alien Tech Used (0) 0 Bonus (2587) 2587 TOTAL SCORE: 7747 Bonus ------- Pacifist 1787 Entered DSFs 500 Aligned with FarCom 300 Cogmind --------- Core Integrity 0/1000 Matter 64/300 Energy 99/100 System Corruption 1% Temperature Cool (9) Movement Core (50) Location -5/Factory Parts ------- > --- POWER (1) -------- (None) > --- PROPULSION (2) --- (None) > --- UTILITY (12) ----- (None) > --- WEAPON (2) ------- Powered Hammer > --- INVENTORY (5) ---- Remote Datajack Remote Datajack Improved Remote Datajack Powered Hammer Peak State ------------ > --- POWER ------------ (None) > --- PROPULSION ------- (None) > --- UTILITY ---------- (None) > --- WEAPON ----------- Improved Remote Datajack Powered Hammer > --- INVENTORY -------- Remote Datajack Remote Datajack Powered Hammer [Rating: 11] Favorites ----------- Power None Propulsion None Utility Advanced Signal Interpreter Processor Advanced Signal Interpreter Weapon Powered Hammer Special Weapon Improved Remote Datajack Impact Weapon Powered Hammer Build | -11 -10 -10 -10 -9 -8 -7 -7 -6 -5 -5 -5 ------- Run | Jun Mat Min Exi Min Mat Fac DSF Fac Fac Was Fac Slots Evolved 10 | . . . . . 4 2 . 2 2 . . Power . | . . . . . . . . . . . . Propulsion . | . . . . . . . . . . . . Utility 10 | . . . . . 4 2 . 2 2 . . Weapon . | . . . . . . . . . . . . Parts Attached 5 | . . . . . . . . 2 1 . 2 Power . | . . . . . . . . . . . . Engine . | . . . . . . . . . . . . Core . | . . . . . . . . . . . . Reactor . | . . . . . . . . . . . . Propulsion . | . . . . . . . . . . . . Treads . | . . . . . . . . . . . . Leg . | . . . . . . . . . . . . Wheel . | . . . . . . . . . . . . Hover . | . . . . . . . . . . . . Flight . | . . . . . . . . . . . . Utility 1 | . . . . . . . . 1 . . . Device . | . . . . . . . . . . . . Storage . | . . . . . . . . . . . . Processor 1 | . . . . . . . . 1 . . . Hackware . | . . . . . . . . . . . . Protection . | . . . . . . . . . . . . Artifact . | . . . . . . . . . . . . Weapon 4 | . . . . . . . . 1 1 . 2 Energy Gun . | . . . . . . . . . . . . Energy Cannon . | . . . . . . . . . . . . Ballistic Gun . | . . . . . . . . . . . . Ballistic Cannon . | . . . . . . . . . . . . Launcher . | . . . . . . . . . . . . Special Weapon 1 | . . . . . . . . . . . 1 Impact Weapon 3 | . . . . . . . . 1 1 . 1 Slashing Weapon . | . . . . . . . . . . . . Piercing Weapon . | . . . . . . . . . . . . Special Melee Weapon . | . . . . . . . . . . . . Unidentified Prototypes . | . . . . . . . . . . . . Parts Lost 1 | . . . . . . . . . 1 . . Power . | . . . . . . . . . . . . Propulsion . | . . . . . . . . . . . . Utility 1 | . . . . . . . . . 1 . . Weapon . | . . . . . . . . . . . . Highest Loss Streak 1 | . . . . . . . . . 1 . . To Critical Strikes . | . . . . . . . . . . . . Average Slot Usage (%) 1 | . . . . . . . . . 4 . 2 Naked Turns 620 | . 28 22 115 42 47 29 54 113 19 44 107 Heaviest Build 3 | . . . . . . . . . . . 3 Greatest Support 3 | 3 3 3 3 3 3 3 3 3 3 3 3 Greatest Overweight (x) . | . . . . . . . . . . . . Average Overweight (x) . | . . . . . . . . . . . . Largest Inventory Capacity 5 | 5 5 5 5 5 5 5 5 5 5 5 5 Average Capacity 5 | 5 5 5 5 5 5 5 5 5 5 5 5 Most Carried 5 | . . . . . . . 1 5 4 4 5 Average Carried 2 | . . . . . . . . 2 3 4 4 Final Capacity 5 | 5 5 5 5 5 5 5 5 5 5 5 5 Final Carried 4 | . . . . . . . 1 4 4 4 4 Class Distribution -------------------- 100% | Mutant Dominant Class ---------------- Mutant | -10/Materials Mutant | -10/Mines Mutant | -10/Exiles Mutant | -9/Mines Mutant | -8/Materials Mutant | -7/Factory Mutant | -7/DSF Mutant | -6/Factory Mutant | -5/Factory Mutant | -5/Waste Mutant | -5/Factory Resources | -11 -10 -10 -10 -9 -8 -7 -7 -6 -5 -5 -5 ----------- Run | Jun Mat Min Exi Min Mat Fac DSF Fac Fac Was Fac Matter Collected . | . . . . . . . . . . . . Remotely . | . . . . . . . . . . . . Salvage Created . | . . . . . . . . . . . . Parts . | . . . . . . . . . . . . Haulers Intercepted . | . . . . . . . . . . . . Recyclers Shooed . | . . . . . . . . . . . . Parts Field Recycled . | . . . . . . . . . . . . Retrieved Matter . | . . . . . . . . . . . . Parts Self-Destructed . | . . . . . . . . . . . . Prevented . | . . . . . . . . . . . . Kills | -11 -10 -10 -10 -9 -8 -7 -7 -6 -5 -5 -5 ------- Run | Jun Mat Min Exi Min Mat Fac DSF Fac Fac Was Fac Combat Hostiles Destroyed . | . . . . . . . . . . . . Classes Destroyed . | . . . . . . . . . . . . Best Kill Streak . | . . . . . . . . . . . . Combat Bots Only . | . . . . . . . . . . . . Max Kills in Single Turn . | . . . . . . . . . . . . Gunslinging . | . . . . . . . . . . . . Exploded . | . . . . . . . . . . . . Melee . | . . . . . . . . . . . . Uniques/NPCs Destroyed . | . . . . . . . . . . . . Combat | -11 -10 -10 -10 -9 -8 -7 -7 -6 -5 -5 -5 -------- Run | Jun Mat Min Exi Min Mat Fac DSF Fac Fac Was Fac Damage Taken 1800 | . . . . 141 537 . 76 . 647 51 348 Core 1758 | . . . . 141 537 . 76 . 647 51 306 Absorbed by Shields 21 | . . . . . . . 21 . . . . Core Remaining (%) 66 | 100 . . . 43 2 . 89 100 . . . Volleys Fired 1 | . . . . . . . . . . . 1 Largest 1 | . . . . . . . . . . . 1 Hottest 7 | . . . . . . . . . . . 7 Shots Fired 1 | . . . . . . . . . . . 1 Gun . | . . . . . . . . . . . . Cannon . | . . . . . . . . . . . . Launcher . | . . . . . . . . . . . . Special 1 | . . . . . . . . . . . 1 Kinetic . | . . . . . . . . . . . . Thermal . | . . . . . . . . . . . . Explosive . | . . . . . . . . . . . . Electromagnetic . | . . . . . . . . . . . . Robot Hit Streak 1 | . . . . . . . . . . . 1 Robot Miss Streak . | . . . . . . . . . . . . Penetration Max . | . . . . . . . . . . . . Secondary Targets . | . . . . . . . . . . . . Shots Hit Robots 1 | . . . . . . . . . . . 1 Core Hits . | . . . . . . . . . . . . Critical Kills . | . . . . . . . . . . . . Critical Parts Destroyed . | . . . . . . . . . . . . Critical Strikes . | . . . . . . . . . . . . Melee Attacks 7 | . . . . . . . . 1 1 . 5 Impact 7 | . . . . . . . . 1 1 . 5 Slashing . | . . . . . . . . . . . . Piercing . | . . . . . . . . . . . . Sneak Attacks . | . . . . . . . . . . . . Combat Hostiles . | . . . . . . . . . . . . Follow-up Attacks . | . . . . . . . . . . . . Damage Inflicted 21 | . . . . 15 6 . . . . . . Guns . | . . . . . . . . . . . . Cannons . | . . . . . . . . . . . . Explosions . | . . . . . . . . . . . . Melee . | . . . . . . . . . . . . Ramming 21 | . . . . 15 6 . . . . . . Kinetic . | . . . . . . . . . . . . Thermal . | . . . . . . . . . . . . Explosive . | . . . . . . . . . . . . Electromagnetic . | . . . . . . . . . . . . Impact . | . . . . . . . . . . . . Slashing . | . . . . . . . . . . . . Piercing . | . . . . . . . . . . . . Highest Corruption 1 | . . . . . . . . . . . 1 Average Corruption 1 | . . . . . . . . . . . 1 Corruption Purged . | . . . . . . . . . . . . Corruption Blocked . | . . . . . . . . . . . . Overload Shots . | . . . . . . . . . . . . Overflow Damage . | . . . . . . . . . . . . Projectiles . | . . . . . . . . . . . . Explosions . | . . . . . . . . . . . . Melee . | . . . . . . . . . . . . Knockbacks . | . . . . . . . . . . . . Impact . | . . . . . . . . . . . . Kinetic . | . . . . . . . . . . . . Secondary . | . . . . . . . . . . . . Self-Inflicted Damage 9 | . . . . 7 2 . . . . . . Shots . | . . . . . . . . . . . . Rammed 5 | . . . . 3 2 . . . . . . Targets Rammed 5 | . . . . 3 2 . . . . . . Kicked . | . . . . . . . . . . . . Crushed . | . . . . . . . . . . . . Highest Temperature . | . . . . . . . . . . . . Average Temperature . | . . . . . . . . . . . . Received Heat Transfer 198 | . . . . . 108 . . . 54 . 36 Siege Activations . | . . . . . . . . . . . . Robots Corrupted . | . . . . . . . . . . . . Combat Hostiles . | . . . . . . . . . . . . Parts Fried . | . . . . . . . . . . . . Impact Corruptions . | . . . . . . . . . . . . Robots Melted . | . . . . . . . . . . . . Combat Hostiles . | . . . . . . . . . . . . Parts Melted . | . . . . . . . . . . . . Heat Transferred . | . . . . . . . . . . . . Parts Sabotaged . | . . . . . . . . . . . . Parts Stolen . | . . . . . . . . . . . . Parts Stripped . | . . . . . . . . . . . . Power Chain Reactions . | . . . . . . . . . . . . Missiles Intercepted . | . . . . . . . . . . . . Alert | -11 -10 -10 -10 -9 -8 -7 -7 -6 -5 -5 -5 ------- Run | Jun Mat Min Exi Min Mat Fac DSF Fac Fac Was Fac Peak Influence 113 | . . . . 30 19 8 24 13 33 56 113 Initial 39 | . . . . . 11 8 9 12 6 11 39 Average 23 | . . . . 21 15 8 14 12 11 21 49 Maximum Alert Level . | . . . . . . . . . . . . Low Security (%) 100 | 100 100 100 . 100 100 100 100 100 100 100 100 Level 1 . | . . . . . . . . . . . . Level 2 . | . . . . . . . . . . . . Level 3 . | . . . . . . . . . . . . Level 4 . | . . . . . . . . . . . . Level 5 . | . . . . . . . . . . . . High Security . | . . . . . . . . . . . . Max Security . | . . . . . . . . . . . . Squads Dispatched 3 | . . . . . 3 . . . . . . Investigation 2 | . . . . . 2 . . . . . . Extermination . | . . . . . . . . . . . . Reinforcement 1 | . . . . . 1 . . . . . . Assault . | . . . . . . . . . . . . Garrison . | . . . . . . . . . . . . Intercept . | . . . . . . . . . . . . Searches Triggered . | . . . . . . . . . . . . Construction Impeded . | . . . . . . . . . . . . Haulers Reinforced . | . . . . . . . . . . . . Active Scanning Responses . | . . . . . . . . . . . . Cargo Convoy Interrupts . | . . . . . . . . . . . . Stealth | -11 -10 -10 -10 -9 -8 -7 -7 -6 -5 -5 -5 --------- Run | Jun Mat Min Exi Min Mat Fac DSF Fac Fac Was Fac Distress Signals . | . . . . . . . . . . . . Communications Jammed . | . . . . . . . . . . . . Distress Signals . | . . . . . . . . . . . . Times Spotted 53 | . . . . 13 20 . 2 . 7 6 5 Peak Tracking Total 20 | . . . . 11 20 . 2 1 7 6 7 Tactical Retreats 2 | . . . . 1 . . 1 . . . . Traps | -11 -10 -10 -10 -9 -8 -7 -7 -6 -5 -5 -5 ------- Run | Jun Mat Min Exi Min Mat Fac DSF Fac Fac Was Fac Traps Triggered 4 | . . . . . 1 . 2 . 1 . . Indirectly . | . . . . . . . . . . . . Trap Hack Attempts . | . . . . . . . . . . . . Triggered . | . . . . . . . . . . . . Disarmed . | . . . . . . . . . . . . Reprogrammed . | . . . . . . . . . . . . Reused . | . . . . . . . . . . . . Traps Extracted . | . . . . . . . . . . . . Installed . | . . . . . . . . . . . . Triggered . | . . . . . . . . . . . . Machines | -11 -10 -10 -10 -9 -8 -7 -7 -6 -5 -5 -5 ---------- Run | Jun Mat Min Exi Min Mat Fac DSF Fac Fac Was Fac Machines Disabled . | . . . . . . . . . . . . Max in Single Turn . | . . . . . . . . . . . . Machines Repaired . | . . . . . . . . . . . . Machines Sabotaged . | . . . . . . . . . . . . Overloaded Fab Kills . | . . . . . . . . . . . . Hacking | -11 -10 -10 -10 -9 -8 -7 -7 -6 -5 -5 -5 --------- Run | Jun Mat Min Exi Min Mat Fac DSF Fac Fac Was Fac Machines Accessed 7 | . . . 1 . 2 1 . 1 1 . 1 Terminals 5 | . . . . . 2 1 . . 1 . 1 Fabricators . | . . . . . . . . . . . . Repair Stations . | . . . . . . . . . . . . Recycling Units . | . . . . . . . . . . . . Scanalyzers . | . . . . . . . . . . . . Garrison Access 1 | . . . . . . . . 1 . . . Total Hacks 14 | . . . 1 . 4 3 . 1 2 . 3 Successful 5 | . . . 1 . 1 1 . . 1 . 1 Failed 9 | . . . . . 3 2 . 1 1 . 2 Catastrophic 2 | . . . . . 1 . . 1 . . . Database Lockouts . | . . . . . . . . . . . . Manual 7 | . . . 1 . 4 . . . . . 2 Terminals 12 | . . . . . 4 3 . . 2 . 3 Fabricators . | . . . . . . . . . . . . Repair Stations . | . . . . . . . . . . . . Recycling Units . | . . . . . . . . . . . . Scanalyzers . | . . . . . . . . . . . . Garrison Access 1 | . . . . . . . . 1 . . . Terminal Hacks 5 | . . . 1 . 1 1 . . 1 . 1 Robot Analysis 1 | . . . . . . . . . . . 1 Open DSF 2 | . . . . . . 1 . . 1 . . Level Access Points 1 | . . . . . 1 . . . . . . EX-Prototype ID Bank 1 | . . . 1 . . . . . . . . Fabricator Hacks . | . . . . . . . . . . . . Repair Station Hacks . | . . . . . . . . . . . . Recycling Unit Hacks . | . . . . . . . . . . . . Scanalyzer . | . . . . . . . . . . . . Garrison Access Hacks . | . . . . . . . . . . . . Unauthorized Hacks . | . . . . . . . . . . . . Terminals . | . . . . . . . . . . . . Fabricators . | . . . . . . . . . . . . Repair Stations . | . . . . . . . . . . . . Recycling Units . | . . . . . . . . . . . . Scanalyzers . | . . . . . . . . . . . . Garrison Access . | . . . . . . . . . . . . Data Cores Recovered . | . . . . . . . . . . . . Used . | . . . . . . . . . . . . Hacking Detections 6 | . . . . . 2 1 . 1 1 . 1 Full Trace Events 1 | . . . . . 1 . . . . . . Feedback Events . | . . . . . . . . . . . . Feedback Blocked . | . . . . . . . . . . . . Robot Schematics Acquired . | . . . . . . . . . . . . Robots Built . | . . . . . . . . . . . . Authchips . | . . . . . . . . . . . . Time . | . . . . . . . . . . . . Total Robot Build Rating . | . . . . . . . . . . . . Part Schematics Acquired . | . . . . . . . . . . . . Parts Built . | . . . . . . . . . . . . Authchips . | . . . . . . . . . . . . Time . | . . . . . . . . . . . . Total Part Build Rating . | . . . . . . . . . . . . Parts Repaired . | . . . . . . . . . . . . Time . | . . . . . . . . . . . . Parts Recycled . | . . . . . . . . . . . . Recycled Matter . | . . . . . . . . . . . . Retrieved Matter . | . . . . . . . . . . . . Retrieved Components . | . . . . . . . . . . . . Parts Scanalyzed . | . . . . . . . . . . . . Part Schematics Acquired . | . . . . . . . . . . . . Parts Damaged . | . . . . . . . . . . . . Bothacking | -11 -10 -10 -10 -9 -8 -7 -7 -6 -5 -5 -5 ------------ Run | Jun Mat Min Exi Min Mat Fac DSF Fac Fac Was Fac Used RIF Installer . | . . . . . . . . . . . . Robots Hacked . | . . . . . . . . . . . . Non-combat . | . . . . . . . . . . . . Combat . | . . . . . . . . . . . . Robot Hacks Applied . | . . . . . . . . . . . . Relay Couplers Released . | . . . . . . . . . . . . Fabnet Peak Effective % . | . . . . . . . . . . . . Robots Rewired . | . . . . . . . . . . . . Allies Hacked . | . . . . . . . . . . . . Hacks Repelled . | . . . . . . . . . . . . Allies | -11 -10 -10 -10 -9 -8 -7 -7 -6 -5 -5 -5 -------- Run | Jun Mat Min Exi Min Mat Fac DSF Fac Fac Was Fac Total Allies . | . . . . . . . . . . . . Largest Group . | . . . . . . . . . . . . Highest-Rated Group . | . . . . . . . . . . . . Highest-Rated Ally . | . . . . . . . . . . . . Total Orders . | . . . . . . . . . . . . Ally Attacks . | . . . . . . . . . . . . Total Damage . | . . . . . . . . . . . . Kills . | . . . . . . . . . . . . Allies Corrupted . | . . . . . . . . . . . . Allies Melted . | . . . . . . . . . . . . Intel | -11 -10 -10 -10 -9 -8 -7 -7 -6 -5 -5 -5 ------- Run | Jun Mat Min Exi Min Mat Fac DSF Fac Fac Was Fac Robot Analysis Total 1 | . . . . . . . . . . . 1 Derelict Logs Recovered 1 | . . . . 1 . . . . . . . Drone Launches . | . . . . . . . . . . . . Drone Recoveries . | . . . . . . . . . . . . Exploration | -11 -10 -10 -10 -9 -8 -7 -7 -6 -5 -5 -5 ------------- Run | Jun Mat Min Exi Min Mat Fac DSF Fac Fac Was Fac Turns Passed 859 | 10 28 22 115 42 47 29 54 118 122 44 228 Spaces Moved 1571 | 19 55 44 229 77 90 57 82 214 236 88 380 Core 1571 | 19 55 44 229 77 90 57 82 214 236 88 380 Treads . | . . . . . . . . . . . . Legs . | . . . . . . . . . . . . Wheels . | . . . . . . . . . . . . Hover . | . . . . . . . . . . . . Flight . | . . . . . . . . . . . . Fastest Speed 50 | 50 50 50 50 50 50 50 50 50 50 50 50 Average Speed 50 | 50 50 50 50 50 50 50 50 50 50 50 50 Slowest Speed 50 | 50 50 50 50 50 50 50 50 50 50 50 50 Overloaded Moves . | . . . . . . . . . . . . Propulsion Burnouts . | . . . . . . . . . . . . Robots Hopped . | . . . . . . . . . . . . Cave-ins Triggered . | . . . . . . . . . . . . Exploration Rate (%) 26 | 4 14 12 61 30 18 2 72 8 7 79 14 Regions Visited 11 Branch Regions 3 Pre-discovered Areas 1 | . . . . 1 . . . . . . . Known Exits Taken 3 | . . . . . 1 1 . 1 . . . Unknown Exits Taken 5 | 1 1 1 1 1 . . . . . . . Scrap Searched . | . . . . . . . . . . . . Spaces Dug 6 | . . . . . . . . 1 1 . 4 Terrain Destroyed 6 | . . . . . . . . 1 1 . 4 Melee 6 | . . . . . . . . 1 1 . 4 Projectile . | . . . . . . . . . . . . AOE . | . . . . . . . . . . . . Terrain Rammed . | . . . . . . . . . . . . Walls Destroyed . | . . . . . . . . . . . . Machines Disabled . | . . . . . . . . . . . . Actions | -11 -10 -10 -10 -9 -8 -7 -7 -6 -5 -5 -5 --------- Run | Jun Mat Min Exi Min Mat Fac DSF Fac Fac Was Fac Total 1621 | 18 54 43 228 79 91 56 94 223 239 87 409 Wait 19 | . . . . . . . . . . . 19 Move 1561 | 18 54 43 228 76 89 56 81 213 236 87 380 Hop . | . . . . . . . . . . . . Pick Up 7 | . . . . . . . 1 5 . . 1 Fast Attach . | . . . . . . . . . . . . Attach 5 | . . . . . . . . 2 1 . 2 Detach 3 | . . . . . . . . 1 1 . 1 Swap . | . . . . . . . . . . . . Drop 1 | . . . . . . . . 1 . . . Fire 1 | . . . . . . . . . . . 1 Melee 7 | . . . . . . . . 1 1 . 5 Ram 5 | . . . . 3 2 . . . . . . Kick . | . . . . . . . . . . . . Crush . | . . . . . . . . . . . . Escape Stasis 12 | . . . . . . . 12 . . . . Rewire . | . . . . . . . . . . . . Trap . | . . . . . . . . . . . . Miscellaneous . | . . . . . . . . . . . . Route ------- -11/Junkyard -10/Materials -10/Mines -10/Exiles -9/Mines -8/Materials (discovered 3 exits: *Fac x3) -7/Factory -7/DSF -6/Factory -5/Factory -5/Waste -5/Factory History --------- Turn | Location | Event 4 | -11/Junkyard | Discovered new exit (range 13) 11 | -11/Junkyard | Entered Materials 32 | -10/Materials | Discovered new exit (range 14) 39 | -10/Materials | Entered Mines 53 | -10/Mines | Received a Rocket Launcher from a helpful Derelict 59 | -10/Mines | Deemed a non-threat by the Exiles lab entrance 59 | -10/Mines | Discovered new exit (range 5) 61 | -10/Mines | Entered Exiles 75 | -10/Exiles | Met 8R-AWN 83 | -10/Exiles | Met EX-HEX 96 | -10/Exiles | Met EX-BIN 103 | -10/Exiles | Aligned with FarCom system 104 | -10/Exiles | Given EX-Vault access code 116 | -10/Exiles | Opened EX-Vault 128 | -10/Exiles | Warned to stay clear of 0b10 Research branches 153 | -10/Exiles | Met EX-DEC 170 | -10/Exiles | Discovered new exit (range 13) 176 | -10/Exiles | Entered Mines 177 | -9/Mines | Assembled infested the area 182 | -9/Mines | Assisted by a Guerilla fighting off Assembled 193 | -9/Mines | Learned location of Zion (-6) 211 | -9/Mines | Core integrity fell below 50% 215 | -9/Mines | Discovered new exit (range 7) 218 | -9/Mines | Entered Materials 218 | -8/Materials | Evolved 4 slots: Utility x4 236 | -8/Materials | Identified exit to Factory 255 | -8/Materials | Core integrity fell below 50% 259 | -8/Materials | Core integrity fell below 20% 265 | -8/Materials | Entered Factory 265 | -7/Factory | Evolved 2 slots: Utility x2 294 | -7/Factory | Identified exit to DSF 294 | -7/Factory | Entered DSF 305 | -7/DSF | Build established: Mutant 323 | -7/DSF | Additional patrols routed to DSF 327 | -7/DSF | Discovered new exit (range 15) 348 | -7/DSF | Entered Factory 348 | -6/Factory | Evolved 2 slots: Utility x2 463 | -6/Factory | Discovered new exit (range 5) 466 | -6/Factory | Identified exit to Factory 466 | -6/Factory | Entered another Factory area 466 | -5/Factory | Evolved 2 slots: Utility x2 581 | -5/Factory | Core integrity fell below 50% 588 | -5/Factory | Sucked down chute 588 | -5/Factory | Entered Waste 592 | -5/Waste | Spotted C-40 Crusher 600 | -5/Waste | Spotted C-40 Crusher 608 | -5/Waste | Spotted C-40 Crusher 615 | -5/Waste | Spotted C-40 Crusher 619 | -5/Waste | Spotted C-40 Crusher 627 | -5/Waste | Spotted C-40 Crusher 628 | -5/Waste | Discovered new exit (range 10) 632 | -5/Waste | Entered Factory 829 | -5/Factory | Core integrity fell below 20% 860 | -5/Factory | Destroyed by Y-64 Sentinel with KE Penetrator Last Messages --------------- 00780_ K-01 Serf collects debris. 00822_ K-01 Serf cleans the Assembly Bed. 00825_ Subcomponent Replicator disabled. 00825_ K-01 Serf cleans the Assembly Bed. 00826_ Jacked K-01 Serf... >>find_chute No applicable chute records found in memory. 00840_ P-70 Sage resets U-05 Engineer, system corruption cleaned. 00846_ Connecting with Terminal... 00846_ Current location identified: Factory >>Analysis(M-36 Artificer) Downloading analysis... M-36 Artificer Tier: 7 M-series mechanics are valued in dangerous areas for their ability to rebuild components, repair simple core integrity, and restore missing functionality by attaching temporary backup components. M-36 Artificers are sometimes dispatched to support an assault force, or are otherwise assigned to a designated repair station. 00855_ Penetrated by Slug. Map ----- +----------------------------------------------------+ | ?????????????????????????????????????????????????? | | ?????????????????????????????????????????????????? | | ?????????????????????????????????????????????????? | | ?????????????????????????????????????????????????? | | ?????????????????????????????????????????????????? | | ?????????????????????????????????????????????????? | | ?????????????????????????????????????????????????? | | ?????????????????????????????????????????????????? | | ?????????????????????????????????????????????????? | | ?????????????????????????????????????????????????? | | ????????????????????????? ???????????????????????? | | ????????????????????????? ???????????????????????? | | ????????????????????????? ???????????????????????? | | ????????????????????????? ???????????????????????? | | ????????????????????????? ???????????????????????? | | ????????????????????????? ???????????????????????? | | ????????????????????????? ???????????????????????? | | ????????????????????????# #??????????????????????? | | ????????????????????????# #??????????????????????? | | ????????????g???????????# #??????????????????????? | | ???????????????????????? ??????????????????????? | | ????????????g??????gg??? Y ??????????????????????? | | ???????????????????????? ??????????????????????? | | ????????????????????????# #?########?????????????? | | ????????????????????????# #?# #?????????????? | | ????????????????????????#@#?# #?????????????? | | ????????????????????????# #?# """ #?????????????? | | ????????????????????????# #?# """ #?????????????? | | ????????????????????????# #?#= """ #####?????????? | | ????????????????????????# #??? # #?????????? | | ????????????????????????# #??###+### " #?????????? | | ???????????????????????## ##?# # T #?????????? | | ???????????????????????#! ### # " #?????????? | | ???????????????????????# Y p+ #?????????? | | ???????????????????????# ### # ! #?????????? | | ???????????????????????#####?# # #?????????? | | ?????????????????????????????### ####/###????????? | | ???????????????????????????????# ## #????????? | | ???????????????????????????????# ## #????????? | | ???????????????????????????????# T +????????? | | ???????????????????????????????#### #????????? | | ??????????????????????????????????# #????????? | | ??????????????????????????????????### ###????????? | | ????????????????????????????????????# #??????????? | | ????????????????????????????????????# ########+### | | ????????????????????????????????????+ | | ????????????????????????????????????# | | ????????????????????????????????????# | | ????????????????????????????????????# | | ????????????????????????????????????#+########+### | +----------------------------------------------------+ Best States ------------- Heat Dissipation 40 Energy Generation 5 Energy Capacity 100 Matter Stores 116 Matter Capacity 300 Sight Range 16 Terrain Scan Density 10 Evasion (%) 50 Item Schematics ----------------- None Robot Schematics ------------------ None Fabricated ------------ Nothing Alien Tech Used ----------------- None Achievements -------------- None Challenges ------------ None Game ------ Seed PlasmaBombardmentDissipator Manual? 0 Play Time 00:13:56 Cumulative 91.9 hours Start 2023.04.10 @ 12:24:49 End 2023.04.10 @ 12:36:06 Sessions 1 Manual Loads 0 Difficulty Rogue Special Mode None Game No. 149 Rogue 149 Adventurer 0 Explorer 0 Win Type - Total 2 Types 2/0/0/0/0/0/0/0/0 Lore% 54 Gallery% 56 Achievement% 46 Wizard Run 0 Options --------- ASCII 0 Keyboard 0 Movement Numpad Keybinds 0 Fullscreen 1 Font 12/Smallcaps Map View 83x54 Tactical HUD 1 Map Filters NONE Filters NONE Steam 1 RUN: 3f4ed0c1-895f-49b2-8de6-dccdcd377cbf